bitfinex/quotes_SOLUSD_20240603
["timestamp","ask_amount","ask_price","bid_price","bid_amount"]
[1717445151109,8.4351,167.03,166.99,2.2156]
[1717445151720,6.22,167.02,166.99,2.2156]
[1717445152433,8.4353,167.02,166.96,120.0]
[1717445152632,6.22,167.01,166.97,2.2159]
[1717445152821,8.4354,167.01,166.96,122.216]
[1717445153121,6.22,166.98,166.95,2.2161]
[1717445153316,6.22,166.98,166.94,128.2871]
[1717445153521,6.22,166.98,166.93,6.22]
[1717445153522,6.22,166.97,166.93,6.22]
[1717445153725,6.22,166.97,166.93,8.4364]
[1717445153905,8.4359,166.98,166.94,2.2163]
[1717445154220,2.2159,166.98,166.96,120.0]
[1717445154407,2.2152,167.03,166.98,120.0]
[1717445154607,2.2152,167.03,166.98,126.22]
[1717445154932,2.2152,167.03,166.98,132.2607]
[1717445155503,2.2152,167.03,166.99,6.22]
[1717445156299,2.2152,167.03,166.99,8.4356]
[1717445156619,2.2152,167.03,167.0,120.0]
[1717445161332,2.2148,167.06,167.02,120.0]
[1717445162225,2.2148,167.06,167.02,122.2152]
[1717445162728,2.2148,167.06,167.02,128.4352]
[1717445162930,2.2148,167.06,167.03,2.2151]
[1717445163133,2.2148,167.06,167.02,128.4352]
[1717445163331,2.2148,167.06,167.03,6.22]
[1717445163536,2.2148,167.06,167.03,8.4351]
[1717445164039,2.2142,167.1,167.06,120.0]
[1717445164234,2.2142,167.1,167.06,126.22]
[1717445166914,2.2142,167.1,167.06,120.0]
[1717445167109,2.2142,167.1,167.06,126.22]
[1717445167639,2.2142,167.1,167.06,120.0]
[1717445167847,2.2142,167.1,167.06,126.22]
[1717445168440,2.2142,167.1,167.06,134.5049]
[1717445168640,2.2142,167.1,167.07,6.22]
[1717445169417,2.2142,167.1,167.06,134.5049]
[1717445169614,2.2142,167.1,167.06,132.2902]
[1717445170332,2.2142,167.1,167.06,126.0702]
[1717445170532,2.2142,167.1,167.08,120.0]
[1717445174049,8.4343,167.09,167.06,120.0]
[1717445174256,6.22,167.08,167.06,120.0]
[1717445174771,8.4343,167.09,167.06,120.0]
[1717445175346,2.2143,167.09,167.06,120.0]
[1717445176454,2.2139,167.13,167.08,120.0]
[1717445176746,2.214,167.12,167.08,126.5635]
[1717445177328,2.214,167.12,167.08,132.7835]
[1717445177933,2.214,167.12,167.08,126.5635]
[1717445178573,2.214,167.12,167.1,8.7446]
[1717445178874,0.2,167.14,167.11,132.9204]
[1717445179665,0.2,167.14,167.11,126.7004]
[1717445179862,2.4137,167.14,167.09,122.3843]
[1717445180037,2.4137,167.14,167.1,0.17]
[1717445180767,2.4137,167.14,167.11,120.0]
[1717445183462,2.4137,167.14,167.11,122.2141]
[1717445186279,0.2,167.14,167.13,2.2138]
[1717445186450,0.2,167.14,167.13,135.1603]
[1717445187161,0.2,167.14,167.13,128.9403]
[1717445187485,0.2,167.14,167.13,122.5538]
[1717445187659,0.2,167.14,167.13,122.2138]
[1717445188280,0.2,167.14,167.13,122.3838]
[1717445189559,0.2,167.14,167.13,122.2138]
[1717445190449,0.2,167.14,167.13,120.0]
[1717445190650,6.42,167.14,167.13,120.0]
[1717445192282,0.2,167.14,167.13,122.2138]
[1717445192863,0.2,167.14,167.13,122.3838]
[1717445194676,0.2,167.14,167.13,122.5538]
[1717445198596,0.2,167.14,167.13,129.0606]
[1717445205476,0.2,167.14,167.13,122.5538]
[1717445211706,0.2,167.14,167.13,128.8046]
[1717445212389,0.2,167.14,167.13,122.5538]
[1717445213709,0.2,167.14,167.13,120.34]
[1717445220209,0.2,167.14,167.13,120.0]
[1717445220411,0.2,167.14,167.11,128.91235197]
[1717445220412,6.42,167.14,167.11,128.91235197]
[1717445220719,6.22,167.13,167.11,128.91235197]
[1717445220895,0.2,167.14,167.11,131.12645197]
[1717445221514,6.42,167.14,167.11,131.12645197]
[1717445222498,0.2,167.14,167.11,131.12645197]
[1717445222908,6.42,167.14,167.11,131.12645197]
[1717445223501,6.42,167.14,167.11,122.2141]
[1717445224003,0.2,167.14,167.11,122.2141]
[1717445224495,0.2,167.14,167.1,0.34]
[1717445224700,6.22,167.12,167.1,9.08103191]
[1717445225294,6.22,167.12,167.1,8.91103191]
[1717445226522,6.22,167.12,167.1,11.12523191]
[1717445226816,6.22,167.12,167.1,8.91103191]
[1717445227024,2.2138,167.13,167.1,8.91103191]
[1717445227199,6.22,167.11,167.1,8.91103191]
[1717445227399,6.22,167.11,167.09,8.91103191]
[1717445228409,2.214,167.12,167.09,8.91103191]
[1717445228723,6.22,167.1,167.09,8.91103191]
[1717445229108,6.22,167.1,167.08,11.12543191]
[1717445230826,6.22,167.11,167.08,11.12543191]
[1717445231026,6.22,167.11,167.08,2.2144]
[1717445231221,6.22,167.11,167.08,11.12731285]
[1717445231603,2.214,167.12,167.08,11.12731285]
[1717445231803,6.22,167.11,167.08,11.12731285]
[1717445237235,6.22,167.1,167.08,8.91291285]
[1717445237421,6.22,167.1,167.05,6.5792]
[1717445237422,8.434,167.12,167.09,122.5543]
[1717445237619,8.434,167.12,167.08,11.12404182]
[1717445237833,6.22,167.11,167.08,11.12404182]
[1717445238028,2.214,167.12,167.08,11.12404182]
[1717445238216,8.434,167.12,167.08,11.12404182]
[1717445238417,6.22,167.11,167.08,11.12404182]
[1717445239014,6.22,167.11,167.08,8.90964182]
[1717445240138,6.22,167.11,167.08,11.12404182]
[1717445240635,2.2141,167.11,167.08,8.90964182]
[1717445240859,6.22,167.09,167.08,8.90964182]
[1717445241014,6.22,167.09,167.07,8.90964182]
[1717445242147,6.22,167.09,167.06,11.12434182]
[1717445242340,6.22,167.09,167.06,8.90964182]
[1717445242540,6.22,167.08,167.06,8.90964182]
[1717445242840,6.22,167.08,167.05,131.12454182]
[1717445243140,6.22,167.08,167.05,122.2149]
[1717445243333,6.22,167.08,167.05,120.0]
[1717445243844,6.22,167.08,167.05,122.2149]
[1717445247822,2.2144,167.09,167.05,122.2149]
[1717445248137,6.22,167.08,167.05,122.2149]
[1717445248851,8.4344,167.09,167.05,122.2149]
[1717445252529,8.4344,167.09,167.05,2.2149]
[1717445253053,2.2144,167.09,167.05,2.2149]
[1717445253258,8.4344,167.09,167.05,2.2149]
[1717445253431,6.22,167.08,167.05,2.2149]
[1717445254353,6.22,167.08,167.04,2.2149]
[1717445255526,8.4344,167.09,167.05,2.2148]
[1717445255728,8.4344,167.09,167.04,2.2149]
[1717445257028,8.4344,167.09,167.05,2.2148]
[1717445259146,8.4344,167.09,167.04,2.2149]
[1717445259835,8.4344,167.09,167.05,2.2148]
[1717445260156,8.4344,167.09,167.04,2.2149]
[1717445261538,8.4344,167.09,167.05,2.2148]
[1717445261739,8.4344,167.09,167.04,2.2149]
[1717445261935,2.2144,167.09,167.04,2.2149]
[1717445262264,8.4344,167.09,167.04,2.2149]
[1717445265069,6.22,167.08,167.04,2.2149]
[1717445265272,6.22,167.08,167.03,128.89735183]
[1717445265569,8.4347,167.07,167.03,128.89735183]
[1717445266249,8.4347,167.07,167.03,120.0]
[1717445266566,8.4347,167.07,167.03,122.2151]
[1717445267475,2.2147,167.07,167.03,131.11245183]
[1717445269073,2.2147,167.07,167.03,131.11471468]
[1717445276564,2.2147,167.07,167.03,128.89961468]
[1717445276768,2.2147,167.07,167.03,131.11471468]
[1717445277770,2.2147,167.07,167.04,2.16340763]
[1717445278076,2.2147,167.07,167.04,8.89961468]
[1717445281782,2.2147,167.07,167.04,8.89941296]
[1717445284481,2.2148,167.06,167.04,8.89941296]
[1717445284660,8.4348,167.06,167.04,8.89941296]
[1717445284862,8.4348,167.06,167.03,8.89941296]
[1717445285050,8.4348,167.06,167.04,2.16343858]
[1717445285254,8.4348,167.06,167.03,8.89941296]
[1717445285475,8.4348,167.06,167.04,2.16352411]
[1717445285676,8.4348,167.06,167.03,8.89941296]
[1717445285884,8.4348,167.06,167.04,2.16353314]
[1717445286083,8.4348,167.06,167.03,8.89941296]
[1717445286382,8.4348,167.06,167.04,2.16355361]
[1717445286605,8.4348,167.06,167.03,8.89941296]
[1717445286879,8.4348,167.06,167.04,2.16362549]
[1717445287081,8.4348,167.06,167.03,8.89941296]
[1717445287376,2.2149,167.05,167.04,2.16365267]
[1717445288075,2.2149,167.05,167.03,8.90109775]
[1717445288577,2.2149,167.05,167.02,128.90109775]
[1717445288784,2.2149,167.05,167.03,2.16404771]
[1717445288972,2.2149,167.05,167.02,128.90109775]
[1717445289175,2.2149,167.05,167.03,2.16407141]
[1717445289363,2.2149,167.05,167.02,128.90109775]
[1717445289563,2.2149,167.05,167.03,2.16405991]
[1717445289858,2.2149,167.05,167.02,128.90109775]
[1717445290059,2.2149,167.05,167.03,2.16408038]
[1717445290286,2.2149,167.05,167.02,128.90109775]
[1717445292593,2.215,167.04,167.02,128.90109775]
[1717445292967,2.215,167.04,167.02,120.0]
[1717445293579,2.215,167.04,167.01,8.90109775]
[1717445293871,2.215,167.04,167.0,131.11649775]
[1717445294070,2.215,167.04,167.01,2.16475812]
[1717445294486,2.215,167.04,167.01,8.90109775]
[1717445294873,2.215,167.04,167.0,131.11649775]
[1717445295200,2.215,167.04,167.01,2.16458738]
[1717445295384,2.215,167.04,167.0,131.11649775]
[1717445295575,2.215,167.04,167.01,2.1645932]
[1717445295776,2.215,167.04,167.0,131.11649775]
[1717445295994,2.215,167.04,167.01,2.16460224]
[1717445296169,2.215,167.04,167.01,4.38000224]
[1717445296493,2.215,167.04,167.01,11.11649775]
[1717445298297,2.215,167.04,167.01,8.90109775]
[1717445298989,2.215,167.04,167.0,131.11659775]
[1717445299184,2.215,167.04,167.01,2.1645871]
[1717445299494,2.215,167.04,167.0,137.33659775]
[1717445299909,2.215,167.04,167.01,2.16446361]
[1717445300098,2.215,167.04,167.0,137.33659775]
[1717445300307,2.215,167.04,167.01,2.16449366]
[1717445300493,2.215,167.04,167.0,137.33659775]
[1717445300699,2.215,167.04,167.0,131.11659775]
[1717445301018,2.215,167.04,167.0,131.1200746]
[1717445301502,2.215,167.04,167.01,2.16451322]
[1717445302299,2.215,167.04,167.0,128.9043337]
[1717445302493,8.435,167.04,167.0,120.0]
[1717445303485,2.215,167.04,167.0,122.2155]
[1717445304009,2.215,167.04,167.0,131.1198337]
[1717445304318,2.215,167.04,167.0,120.0]
[1717445304700,8.435,167.04,167.0,120.0]
[1717445305292,2.215,167.04,167.0,120.0]
[1717445305989,2.215,167.04,167.0,122.2155]
[1717445306190,8.435,167.04,167.0,120.0]
[1717445306390,8.435,167.04,166.99,11.4599337]
[1717445306710,8.435,167.04,166.99,11.2899337]
[1717445307610,8.435,167.04,167.0,2.2155]
[1717445308093,2.215,167.04,167.0,2.2155]
[1717445308295,8.435,167.04,167.0,2.2155]
[1717445308818,2.215,167.04,167.0,2.2155]
[1717445309007,8.435,167.04,167.0,122.2155]
[1717445309213,2.215,167.04,167.0,122.2155]
[1717445310118,2.215,167.04,167.01,2.2154]
[1717445310431,2.2145,167.08,167.04,2.215]
[1717445310643,2.2145,167.08,167.04,122.215]
[1717445310929,2.2145,167.08,167.05,6.22]
[1717445311598,2.2145,167.08,167.04,126.22]
[1717445312729,2.2145,167.08,167.03,8.9043337]
[1717445313020,2.2146,167.07,167.02,128.9043337]
[1717445313199,2.2146,167.07,167.03,2.16341198]
[1717445314622,8.4346,167.07,167.03,2.16341198]
[1717445315510,2.2146,167.07,167.03,2.16341198]
[1717445316219,2.2146,167.07,167.03,2.2151]
[1717445317116,2.2146,167.07,167.02,131.1195337]
[1717445319611,8.4346,167.07,167.02,131.1195337]
[1717445320828,2.2146,167.07,167.02,131.1195337]
[1717445324220,2.2146,167.07,167.02,11.1195337]
[1717445324416,2.2146,167.07,167.02,2.2152]
[1717445325628,2.3236121,167.07,167.02,2.2152]
[1717445326531,2.3236121,167.07,167.01,11.4596337]
[1717445326842,6.22,167.06,167.02,2.16523501]
[1717445327945,6.22,167.06,167.02,4.38043501]
[1717445328148,6.22,167.06,167.02,2.2152]
[1717445329540,2.3236121,167.07,167.02,2.2152]
[1717445329946,8.5436121,167.07,167.02,2.2152]
[1717445332447,8.4348,167.06,167.01,11.1196337]
[1717445332647,2.2149,167.05,167.01,8.9043337]
[1717445332860,2.2149,167.05,167.0,128.9043337]
[1717445333026,2.2149,167.05,167.01,4.38122888]
[1717445333326,2.2149,167.05,167.01,2.2153]
[1717445334944,2.2149,167.05,167.01,11.12520275]
[1717445338140,8.4349,167.05,167.01,8.90990275]
[1717445338438,2.2149,167.05,167.0,137.34530275]
[1717445338649,2.2149,167.05,167.01,4.38131487]
[1717445338829,2.2149,167.05,167.01,11.12530275]
[1717445341960,2.2149,167.05,167.01,2.2154]
[1717445342334,2.2149,167.05,167.01,11.12530275]
[1717445343053,2.2149,167.05,167.01,8.90990275]
[1717445343459,2.2149,167.05,167.0,131.12530275]
[1717445343661,2.2149,167.05,167.01,2.16489758]
[1717445343864,2.2149,167.05,167.01,8.90990275]
[1717445344565,2.2149,167.05,167.01,11.12520275]
[1717445345259,2.2149,167.05,167.01,11.11982559]
[1717445345939,2.2149,167.05,167.01,2.2153]
[1717445352276,0.1090121,167.07,167.06,148.5606]
[1717445352446,0.1090121,167.07,167.06,201.07429857]
[1717445352653,0.1090121,167.07,167.06,137.35256512]
[1717445357488,0.1090121,167.07,167.06,135.1878]
[1717445359384,0.1090121,167.07,167.06,139.6173]
[1717445359693,0.1090121,167.07,167.06,146.2616]
[1717445364800,0.1090121,167.07,167.06,155.1206]
[1717445367070,0.1090121,167.07,167.06,148.9006]
[1717445367395,0.1090121,167.07,167.06,155.1206]
[1717445367573,0.1090121,167.07,167.06,148.9006]
[1717445367883,0.1090121,167.07,167.06,155.1206]
[1717445371888,20.365643,167.27,167.1,120.0]
[1717445372086,6.22,167.11,167.09,2.2142]
[1717445372567,6.7962,167.14,167.09,2.2142]
[1717445372769,6.22,167.1,167.09,2.2142]
[1717445373804,6.22,167.1,167.09,2.3842]
[1717445374383,6.22,167.11,167.09,2.3842]
[1717445375786,6.22,167.11,167.1,122.2142]
[1717445378009,6.7962,167.14,167.1,122.2142]
[1717445378185,6.22,167.12,167.1,122.2142]
[1717445380884,6.22,167.11,167.1,122.2142]
[1717445381080,6.22,167.11,167.1,120.0]
[1717445382283,2.2137,167.14,167.1,120.0]
[1717445382501,6.22,167.11,167.1,122.2142]
[1717445384407,6.22,167.11,167.1,2.2142]
[1717445385719,6.22,167.11,167.1,122.2142]
[1717445386513,2.2137,167.14,167.1,122.2142]
[1717445386687,6.22,167.11,167.1,122.2142]
[1717445388707,2.2145,167.08,167.04,122.2149]
[1717445388911,6.22,167.06,167.04,122.2149]
[1717445389090,6.22,167.05,167.02,122.2152]
[1717445389509,6.22,167.05,167.03,2.2151]
[1717445392399,6.22,167.06,167.03,2.2151]
[1717445393324,2.2146,167.07,167.04,122.215]
[1717445393503,8.4346,167.07,167.04,122.215]
[1717445393898,8.4346,167.07,167.04,120.0]
[1717445394111,8.4346,167.07,167.04,122.215]
[1717445398026,8.4346,167.07,167.04,120.0]
[1717445400450,2.2146,167.07,167.04,120.0]
[1717445406261,2.2146,167.07,167.05,1.19694291]
[1717445407852,36.1047,167.12,167.05,1.19694291]
[1717445407853,11.0693,167.13,167.06,120.0]
[1717445408057,2.2143,167.1,167.07,1.19679962]
[1717445408555,8.4343,167.1,167.07,1.19679962]
[1717445411173,2.2143,167.1,167.08,120.0]
[1717445411362,2.2143,167.1,167.09,1.19665636]
[1717445411562,11.0674,167.16,167.1,120.0]
[1717445411749,2.2139,167.13,167.11,1.19715103]
[1717445415564,2.2139,167.13,167.12,120.0]
[1717445418279,2.2133,167.17,167.14,120.0]
[1717445418668,8.4333,167.17,167.14,120.0]
[1717445419768,8.4333,167.17,167.12,2.3839]
[1717445419976,6.22,167.13,167.11,120.0]
[1717445420170,2.2136,167.15,167.11,120.0]
[1717445420375,6.22,167.14,167.11,120.0]
[1717445420972,6.22,167.14,167.11,122.214]
[1717445421163,6.22,167.14,167.11,120.0]
[1717445422280,8.4337,167.14,167.11,120.0]
[1717445422791,2.2137,167.14,167.11,120.0]
[1717445422992,6.22,167.13,167.11,120.0]
[1717445423203,2.2137,167.14,167.11,120.0]
[1717445423370,2.2137,167.14,167.13,120.0]
[1717445423568,6.6396,167.18,167.13,120.0]
[1717445423880,6.22,167.15,167.13,120.0]
[1717445424799,2.2133,167.17,167.13,120.0]
[1717445425100,6.22,167.15,167.13,120.0]
[1717445425312,2.2133,167.17,167.13,120.0]
[1717445425612,6.22,167.16,167.13,122.2137]
[1717445426292,2.2133,167.17,167.13,122.2137]
[1717445426477,6.22,167.16,167.13,120.0]
[1717445426671,6.22,167.14,167.09,2.2142]
[1717445426979,2.2137,167.14,167.08,122.2144]
[1717445427178,2.2137,167.14,167.1,120.0]
[1717445427500,6.22,167.13,167.1,120.0]
[1717445427698,2.2137,167.14,167.1,122.2142]
[1717445427891,6.22,167.13,167.1,122.2142]
[1717445428200,6.22,167.13,167.1,128.834]
[1717445428787,2.2137,167.14,167.11,6.6198]
[1717445430205,2.2137,167.14,167.12,120.0]
[1717445432206,2.2137,167.14,167.13,6.5161]
[1717445432383,56.3402668,167.2,167.13,6.5161]
[1717445432578,6.22,167.17,167.13,6.5161]
[1717445432781,8.4333,167.17,167.13,6.5161]
[1717445433008,2.2133,167.17,167.13,6.5161]
[1717445433408,8.4333,167.17,167.14,120.0]
[1717445434289,2.2133,167.17,167.14,120.0]
[1717445434492,8.4333,167.17,167.14,120.0]
[1717445434798,2.2133,167.17,167.14,120.0]
[1717445435114,8.4333,167.17,167.14,120.0]
[1717445441611,6.22,167.16,167.14,120.0]
[1717445443509,2.2133,167.17,167.14,120.0]
[1717445443709,6.22,167.16,167.14,120.0]
[1717445445707,6.22,167.15,167.12,120.0]
[1717445445910,6.22,167.14,167.12,120.0]
[1717445446415,8.4339,167.13,167.08,2.2144]
[1717445446613,6.22,167.1,167.08,2.2144]
[1717445446995,6.22,167.1,167.09,2.2143]
[1717445447397,6.22,167.1,167.09,122.2143]
[1717445447720,6.22,167.11,167.09,122.2143]
[1717445447892,6.22,167.12,167.1,2.2142]
[1717445448509,6.22,167.11,167.1,2.2142]
[1717445448919,6.22,167.12,167.1,2.2142]
[1717445449818,2.2139,167.13,167.1,2.2142]
[1717445450334,6.22,167.12,167.1,2.2142]
[1717445450923,8.4339,167.13,167.1,2.2142]
[1717445451722,2.2139,167.13,167.11,122.214]
[1717445452025,8.4339,167.13,167.11,122.214]
[1717445452321,8.4339,167.13,167.09,120.0]
[1717445453411,8.4339,167.13,167.1,2.2142]
[1717445454940,8.4339,167.13,167.09,122.2143]
[1717445455217,8.4339,167.13,167.09,128.231]
[1717445455519,2.2139,167.13,167.1,2.2142]
[1717445458537,8.4339,167.13,167.1,2.2142]
[1717445459447,8.4339,167.13,167.09,122.2143]
[1717445460806,8.4339,167.13,167.1,2.2142]
[1717445461118,2.2139,167.13,167.1,2.2142]
[1717445463608,2.2139,167.13,167.1,8.302]
[1717445464312,2.2139,167.13,167.11,120.0]
[1717445465624,6.22,167.16,167.11,128.3002]
[1717445465932,2.2134,167.17,167.13,120.0]
[1717445467429,2.2134,167.17,167.13,122.2138]
[1717445467733,2.2134,167.17,167.13,120.0]
[1717445468521,2.2134,167.17,167.13,128.9128909]
[1717445469833,2.2136,167.15,167.13,128.9128909]
[1717445473136,2.2136,167.15,167.13,131.1266909]
[1717445473637,2.2136,167.15,167.13,128.9128909]
[1717445474436,2.2131,167.19,167.15,120.0]
[1717445475230,2.2131,167.19,167.15,128.5774]
[1717445476357,2.2131,167.19,167.15,126.3639]
[1717445478029,8.4331,167.19,167.15,126.3639]
[1717445480636,2.2131,167.19,167.15,126.3639]
[1717445480836,6.22,167.16,167.14,8.91294705]
[1717445481150,2.2132,167.18,167.14,8.91294705]
[1717445482330,2.2132,167.18,167.13,131.12664705]
[1717445484641,6.22,167.17,167.14,8.91294705]
[1717445485639,2.2132,167.18,167.14,8.91294705]
[1717445485957,6.22,167.17,167.14,8.91294705]
[1717445486161,2.2132,167.18,167.14,8.91294705]
[1717445486338,6.22,167.17,167.14,11.12664705]
[1717445488356,6.22,167.17,167.15,120.0]
[1717445488759,2.2132,167.18,167.15,120.0]
[1717445488942,6.22,167.17,167.15,120.0]
[1717445494366,2.2132,167.18,167.15,122.2135]
[1717445494754,6.22,167.17,167.15,122.2135]
[1717445494954,6.22,167.17,167.15,120.0]
[1717445495467,6.22,167.17,167.13,2.2137]
[1717445495768,6.22,167.16,167.15,8.91713721]
[1717445496064,6.22,167.16,167.15,8.9169792]
[1717445496261,2.2132,167.18,167.15,8.9169792]
[1717445496471,6.22,167.17,167.15,8.9169792]
[1717445497142,2.2132,167.18,167.15,8.9169792]
[1717445497347,6.22,167.17,167.15,8.9169792]
[1717445497847,2.2132,167.18,167.15,8.9169792]
[1717445498273,6.22,167.17,167.15,8.9169792]
[1717445498672,2.2132,167.18,167.15,8.9169792]
[1717445498969,6.22,167.17,167.15,8.9169792]
[1717445500081,2.2132,167.18,167.15,8.9169792]
[1717445500445,8.4332,167.18,167.15,8.9169792]
[1717445500952,8.4332,167.18,167.16,8.9169792]
[1717445501153,8.4332,167.18,167.15,8.9169792]
[1717445501362,8.4332,167.18,167.15,8.91570065]
[1717445501662,6.22,167.17,167.15,8.91570065]
[1717445502063,6.22,167.17,167.16,8.91570065]
[1717445502960,6.22,167.17,167.16,8.91578953]
[1717445503154,6.22,167.17,167.15,8.91578953]
[1717445507356,2.2132,167.18,167.15,8.91578953]
[1717445507668,2.2132,167.18,167.16,8.91578953]
[1717445507882,8.4332,167.18,167.16,8.91511684]
[1717445508580,6.22,167.17,167.16,8.91511684]
[1717445510677,6.22,167.17,167.14,122.2137]
[1717445510884,6.22,167.17,167.16,8.91509866]
[1717445511983,6.22,167.17,167.14,128.91509866]
[1717445512388,56.3402668,167.2,167.14,128.91509866]
[1717445512555,56.3402668,167.2,167.14,133.34229866]
[1717445512762,58.5531668,167.2,167.14,128.91509866]
[1717445512963,6.22,167.19,167.14,131.12869866]
[1717445513182,6.22,167.18,167.15,0.17]
[1717445513977,6.22,167.18,167.15,9.08509866]
[1717445514680,6.22,167.18,167.15,0.17]
[1717445514884,2.213,167.19,167.15,9.08517808]
[1717445515090,6.22,167.18,167.15,9.08517808]
[1717445515907,6.22,167.18,167.16,120.0]
[1717445516192,2.213,167.19,167.16,120.0]
[1717445516398,6.22,167.18,167.16,120.0]
[1717445517190,2.213,167.19,167.16,120.0]
[1717445517369,6.22,167.18,167.16,120.0]
[1717445518493,2.213,167.19,167.16,120.0]
[1717445518691,56.3402668,167.2,167.16,120.0]
[1717445519070,6.22,167.19,167.16,120.0]
[1717445519611,6.22,167.18,167.15,9.08514416]
[1717445519822,56.3402668,167.2,167.15,8.91514416]
[1717445519823,6.22,167.16,167.15,8.91514416]
[1717445519969,8.4334,167.16,167.14,8.91514416]
[1717445520278,6.22,167.15,167.14,8.91514416]
[1717445522794,6.22,167.15,167.14,8.92225197]
[1717445525705,8.4335,167.15,167.14,8.92225197]
[1717445526008,12.8606,167.15,167.14,8.92225197]
[1717445526507,2.2137,167.14,167.13,8.92225197]
[1717445526712,8.4337,167.14,167.13,8.92225197]
[1717445526888,8.4337,167.14,167.12,8.92225197]
[1717445527088,6.22,167.13,167.12,8.92760914]
[1717445527606,8.4338,167.13,167.12,8.92760914]
[1717445528206,8.4338,167.13,167.1,8.92760914]
[1717445528500,6.22,167.12,167.1,8.92760914]
[1717445529104,6.22,167.11,167.1,8.92760914]
[1717445530036,6.22,167.12,167.1,8.92760914]
[1717445530315,2.2138,167.13,167.1,8.92760914]
[1717445530495,8.4338,167.13,167.1,8.92760914]
[1717445530692,2.2138,167.13,167.1,8.92760914]
[1717445531194,2.2138,167.13,167.1,6.0042]
[1717445531715,2.2138,167.13,167.12,120.0]
[1717445535794,2.2134,167.17,167.12,126.2613]
[1717445536105,2.2134,167.17,167.14,120.0]
[1717445536311,8.4336,167.15,167.11,8.92760914]
[1717445536525,6.22,167.13,167.1,128.92760914]
[1717445536818,8.4338,167.13,167.1,128.92760914]
[1717445540841,2.2138,167.13,167.1,128.92760914]
[1717445541920,2.2138,167.13,167.1,120.0]
[1717445542230,2.2138,167.13,167.1,128.92698859]
[1717445542406,2.2138,167.13,167.1,131.14118859]
[1717445542605,8.4338,167.13,167.1,128.92632094]
[1717445542937,8.4338,167.13,167.1,128.92656023]
[1717445543922,8.4338,167.13,167.1,120.0]
[1717445544230,8.4338,167.13,167.1,131.14112605]
[1717445545703,2.2138,167.13,167.1,131.14112605]
[1717445546001,8.4338,167.13,167.1,131.14112605]
[1717445549331,8.4338,167.13,167.1,131.1382343]
[1717445550622,2.2138,167.13,167.1,131.1382343]
[1717445550828,2.2138,167.13,167.1,131.13918712]
[1717445552931,8.4338,167.13,167.1,131.13918712]
[1717445555231,8.4338,167.13,167.1,122.2142]
[1717445555536,8.4338,167.13,167.12,8.92498771]
[1717445556724,2.2138,167.13,167.12,8.92498771]
[1717445559640,2.2138,167.13,167.11,8.92498771]
[1717445564054,2.2138,167.13,167.11,8.92469193]
[1717445571351,8.4338,167.13,167.11,8.92469193]
[1717445571739,8.4338,167.13,167.11,8.92476304]
[1717445572153,2.2138,167.13,167.11,8.92476304]
[1717445572360,2.2138,167.13,167.1,8.92476304]
[1717445572534,8.4338,167.13,167.1,8.92476304]
[1717445573947,8.4338,167.13,167.09,11.13906304]
[1717445574836,8.4338,167.13,167.12,8.92476304]
[1717445575855,8.4338,167.13,167.09,2.2143]
[1717445577332,2.2138,167.13,167.09,2.2143]
[1717445577635,8.4338,167.13,167.09,2.2143]
[1717445578259,2.2138,167.13,167.1,122.3842]
[1717445578949,2.2138,167.13,167.12,8.92555629]